[Event "Bhopal GM Open 2019"]
[Site "Bhopal"]
[Date "2019.12.22"]
[Round "3.10"]
[White "Kaushik G Iyer"]
[Black "Nguyen, Van Huy"]
[Result "0-1"]
[ECO "E10"]
[WhiteElo "1824"]
[BlackElo "2457"]
[Annotator "ChessBase"]
[PlyCount "142"]
[EventDate "2019.12.21"]
[EventType "swiss"]
[EventCountry "IND"]
[SourceTitle "playchess.com"]
[Source "ChessBase"]
[SourceQuality "1"]
[TimeControl "5400+30"]

1. d4 {[%emt 0:00:00]} Nf6 {[%emt 0:00:00]} 2. c4 {[%emt 0:00:00]} e6 {[%emt 0:00:27]} 3. Nf3 {[%emt 0:00:00]} d5 {[%emt 0:00:27]} 4. g3 {[%emt 0:00:00]} Bb4+ {[%emt 0:00:37]} 5. Bd2 {[%emt 0:00:00]} Be7 {[%emt 0:00:06]} 6. Bg2 {[%emt 0:00:02]} O-O {[%emt 0:00:28]} 7. O-O {[%emt 0:00:06]} c6 {[%emt 0:00:03]} 8. Qc2 {[%emt 0:00:23]} b6 {[%emt 0:00:32]} 9. b3 {[%emt 0:01:04]} Ba6 {[%emt 0:00:40]} 10. Bf4 {[%emt 0:00:14]} Nbd7 {[%emt 0:01:51]} 11. Rd1 {[%emt 0:00:24]} Rc8 {[%emt 0:01:54]} 12. Nc3 {[%emt 0:00:41]} dxc4 {[%emt 0:01:31]} 13. bxc4 {[%emt 0:00:06]} Bxc4 {[%emt 0:03:57]} 14. Nd2 {[%emt 0:00:45]} b5 {[%emt 0:03:16]} 15. Nxc4 {[%emt 0:00:08]} bxc4 {[%emt 0:00:04]} 16. e4 {[%emt 0:02:15]} Qa5 {[%emt 0:08:08]} 17. Na4 {[%emt 0:07:31]} Nb6 {[%emt 0:08:16]} 18. Nc5 {[%emt 0:01:42]} Bxc5 {[%emt 0:07:32]} 19. dxc5 {[%emt 0:00:19]} Na4 {[%emt 0:00:32]} 20. Rd4 {[%emt 0:07:56]} Nxc5 {[%emt 0:07:59]} 21. Rxc4 {[%emt 0:00:11]} Ncd7 {[%emt 0:00:57]} 22. Bd6 {[%emt 0:08:08]} Rfd8 {[%emt 0:10:26]} 23. Rxc6 {[%emt 0:00:42]} Rxc6 {[%emt 0:01:54]} 24. Qxc6 {[%emt 0:00:10]} Nb6 {[%emt 0:01:04]} 25. e5 {[%emt 0:24:24]} Nfd5 {[%emt 0:02:43]} 26. Bxd5 {[%emt 0:02:25]} Nxd5 {[%emt 0:01:23]} 27. Rd1 {[%emt 0:12:46]} Qxa2 {[%emt 0:08:57]} 28. Rc1 {[%emt 0:16:07]} h5 {[%emt 0:02:06]} 29. Qb7 {[%emt 0:01:16]} a5 {[%emt 0:02:37]} 30. Rc5 {[%emt 0:04:01]} Qe2 {[%emt 0:06:31]} 31. Qa7 {[%emt 0:06:17]} Qe1+ {[%emt 0:05:36]} 32. Kg2 {[%emt 0:00:06]} Qe4+ {[%emt 0:00:09]} 33. Kg1 {[%emt 0:00:04]} a4 {[%emt 0:00:48]} 34. Qa5 {[%emt 0:02:17]} Re8 {[%emt 0:00:45]} 35. Qa6 {[%emt 0:01:56]} h4 {[%emt 0:05:12]} 36. Rc4 {[%emt 0:00:33]} Qe1+ {[%emt 0:02:45]} 37. Kg2 {[%emt 0:00:03]} h3+ {[%emt 0:00:18]} 38. Kxh3 {[%emt 0:00:03]} Qf1+ {[%emt 0:00:22]} 39. Kh4 {[%emt 0:00:07]} Qxf2 {[%emt 0:00:36]} 40. Qxa4 {[%emt 0:02:08]} Qxh2+ {[%emt 0:00:08]} 41. Kg4 {[%emt 0:00:07]} Rd8 {[%emt 0:00:30]} 42. Qa5 {[%emt 0:01:24]} Qe2+ {[%emt 0:00:48]} 43. Kh3 {[%emt 0:00:15]} Qf1+ {[%emt 0:00:20]} 44. Kh2 {[%emt 0:00:05]} Qxc4 {[%emt 0:00:33]} 45. Qxd8+ {[%emt 0:00:04]} Kh7 {[%emt 0:00:03]} 46. Qg5 {[%emt 0:01:21]} Qe2+ {[%emt 0:00:18]} 47. Kh3 {[%emt 0:00:44]} Qf1+ {[%emt 0:01:14]} 48. Kh2 {[%emt 0:00:13]} Qf2+ {[%emt 0:00:22]} 49. Kh3 {[%emt 0:00:45]} Ne3 {[%emt 0:00:36]} 50. Qh4+ {[%emt 0:00:39]} Kg6 {[%emt 0:00:11]} 51. Qe4+ {[%emt 0:00:15]} Qf5+ {[%emt 0:00:07]} 52. Qxf5+ {[%emt 0:00:04]} Kxf5 {[%emt 0:00:05]} 53. Bf8 {[%emt 0:00:07]} g6 {[%emt 0:00:18]} 54. Bd6 {[%emt 0:00:42]} Ng4 {[%emt 0:00:05]} 55. Ba3 {[%emt 0:00:08]} Nxe5 {[%emt 0:00:05]} 56. Bb2 {[%emt 0:00:04]} g5 {[%emt 0:00:35]} 57. Bc3 {[%emt 0:00:23]} g4+ {[%emt 0:00:05]} 58. Kg2 {[%emt 0:00:17]} Ke4 {[%emt 0:00:19]} 59. Kf2 {[%emt 0:00:03]} f5 {[%emt 0:00:11]} 60. Ke2 {[%emt 0:00:12]} Nf3 {[%emt 0:00:04]} 61. Kf2 {[%emt 0:00:06]} Kd3 {[%emt 0:00:05]} 62. Bb2 {[%emt 0:00:21]} e5 {[%emt 0:00:08]} 63. Bc1 {[%emt 0:00:07]} Nd2 {[%emt 0:00:12]} 64. Bb2 {[%emt 0:00:24]} e4 {[%emt 0:00:08]} 65. Ba3 {[%emt 0:00:14]} e3+ {[%emt 0:00:05]} 66. Kg2 {[%emt 0:00:03]} Nf3 {[%emt 0:00:23]} 67. Bb4 {[%emt 0:00:03]} e2 {[%emt 0:00:11]} 68. Kh1 {[%emt 0:00:22]} Nd2 {[%emt 0:00:10]} 69. Kg2 {[%emt 0:00:02]} e1=Q {[%emt 0:00:10]} 70. Kh2 {[%emt 0:00:05]} Nf3+ {[%emt 0:00:09]} 71. Kg2 {[%emt 0:00:02]} Qg1# {[%emt 0:00:06]} 0-1

[Event "Bhopal GM Open 2019"]
[Site "Bhopal"]
[Date "2019.12.22"]
[Round "3.11"]
[White "Arnav Kushwaha"]
[Black "Abdisalimov, Abdimalik"]
[Result "0-1"]
[ECO "B22"]
[WhiteElo "1820"]
[BlackElo "2394"]
[Annotator "NA"]
[PlyCount "84"]
[EventDate "2019.12.21"]
[EventType "swiss"]
[EventCountry "IND"]
[SourceTitle "playchess.com"]
[Source "ChessBase"]
[SourceQuality "1"]
[TimeControl "5400+30"]

1. e4 {[%emt 0:00:00]} c5 {[%emt 0:00:00]} 2. c3 {[%emt 0:00:00]} Nf6 {[%emt 0:00:00]} 3. e5 {[%emt 0:00:00]} Nd5 {[%emt 0:00:00]} 4. Nf3 {[%emt 0:00:05]} Nc6 {[%emt 0:00:00]} 5. d4 {[%emt 0:00:08]} cxd4 {[%emt 0:00:00]} 6. cxd4 {[%emt 0:00:07]} d6 {[%emt 0:00:00]} 7. Bc4 {[%emt 0:00:09]} Nb6 {[%emt 0:00:00]} 8. Bb5 {[%emt 0:00:06]} d5 {[%emt 0:00:01]} 9. Nc3 {[%emt 0:00:32]} Bf5 {[%emt 0:06:49]} 10. Bg5 {[%emt 0:03:21]} Rc8 {[%emt 0:00:55]} 11. a3 {[%emt 0:06:26]} a6 {[%emt 0:00:41]} 12. Bd3 {[%emt 0:00:43]} Bg4 {[%emt 0:00:13]} 13. Be2 {[%emt 0:01:30]} Qd7 {[%emt 0:00:40]} 14. Rc1 {[%emt 0:02:06]} e6 {[%emt 0:01:10]} 15. O-O {[%emt 0:02:31]} h6 {[%emt 0:01:07]} 16. Be3 {[%emt 0:00:17]} Be7 {[%emt 0:02:16]} 17. Re1 {[%emt 0:10:18]} O-O {[%emt 0:01:46]} 18. h3 {[%emt 0:01:38]} Bh5 {[%emt 0:00:42]} 19. Nh2 {[%emt 0:00:24]} Bg6 {[%emt 0:00:20]} 20. Bd3 {[%emt 0:00:50]} Nc4 {[%emt 0:00:29]} 21. Bxg6 {[%emt 0:10:14]} fxg6 {[%emt 0:00:05]} 22. Qe2 {[%emt 0:00:44]} g5 {[%emt 0:01:08]} 23. Nf1 {[%emt 0:05:33]} Qe8 {[%emt 0:02:27]} 24. Ng3 {[%emt 0:00:32]} Qg6 {[%emt 0:00:37]} 25. Qc2 {[%emt 0:10:03]} Kh7 {[%emt 0:00:21]} 26. Qxg6+ {[%emt 0:02:06]} Kxg6 {[%emt 0:00:04]} 27. Rc2 {[%emt 0:00:13]} b5 {[%emt 0:00:24]} 28. Na2 {[%emt 0:00:58]} a5 {[%emt 0:02:28]} 29. Rec1 {[%emt 0:01:36]} a4 {[%emt 0:00:05]} 30. Ne2 {[%emt 0:01:15]} Ra8 {[%emt 0:12:18]} 31. Bd2 {[%emt 0:10:20]} b4 {[%emt 0:00:49]} 32. Bxb4 {[%emt 0:01:32]} Bxb4 {[%emt 0:00:16]} 33. Nxb4 {[%emt 0:00:07]} Nxb4 {[%emt 0:00:04]} 34. axb4 {[%emt 0:00:05]} Rfb8 {[%emt 0:00:08]} 35. Nc3 {[%emt 0:04:29]} Rxb4 {[%emt 0:00:18]} 36. Nd1 {[%emt 0:00:16]} Na5 {[%emt 0:02:12]} 37. Rc7 {[%emt 0:01:54]} Nb3 {[%emt 0:00:55]} 38. R1c6 {[%emt 0:01:08]} Nxd4 {[%emt 0:00:06]} 39. Rd6 {[%emt 0:00:07]} Kf5 {[%emt 0:00:27]} 40. Rxg7 {[%emt 0:00:21]} Kxe5 {[%emt 0:00:09]} 41. Rdd7 {[%emt 0:00:06]} a3 {[%emt 0:00:14]} 42. bxa3 {[%emt 0:00:11]} Rb1 {[%emt 0:00:17]} 0-1

[Event "Bhopal GM Open 2019"]
[Site "Bhopal"]
[Date "2019.12.22"]
[Round "3.12"]
[White "Bajaj Prakhar"]
[Black "Manik, Mikulas"]
[Result "1/2-1/2"]
[ECO "B94"]
[WhiteElo "1779"]
[BlackElo "2379"]
[Annotator "NA"]
[PlyCount "87"]
[EventDate "2019.12.21"]
[EventType "swiss"]
[EventCountry "IND"]
[SourceTitle "playchess.com"]
[Source "ChessBase"]
[SourceQuality "1"]
[TimeControl "5400+30"]

1. e4 {[%emt 0:00:00]} c5 {[%emt 0:02:50]} 2. Nf3 {[%emt 0:00:08]} d6 {[%emt 0:00:03]} 3. d4 {[%emt 0:00:04]} cxd4 {[%emt 0:00:04]} 4. Nxd4 {[%emt 0:00:04]} Nf6 {[%emt 0:00:03]} 5. Nc3 {[%emt 0:00:02]} a6 {[%emt 0:00:04]} 6. Bg5 {[%emt 0:00:03]} Nbd7 {[%emt 0:00:55]} 7. f4 {[%emt 0:00:55]} Qc7 {[%emt 0:01:04]} 8. Qf3 {[%emt 0:01:11]} h6 {[%emt 0:00:07]} 9. Bh4 {[%emt 0:00:45]} g5 {[%emt 0:00:05]} 10. fxg5 {[%emt 0:04:08]} hxg5 {[%emt 0:03:08]} 11. Bxg5 {[%emt 0:01:14]} Qc5 {[%emt 0:00:48]} 12. Nf5 {[%emt 0:10:38]} e6 {[%emt 0:04:24]} 13. Bxf6 {[%emt 0:00:34]} Nxf6 {[%emt 0:00:09]} 14. Ng3 {[%emt 0:04:20]} Nd7 {[%emt 0:06:09]} 15. O-O-O {[%emt 0:06:12]} Ne5 {[%emt 0:00:26]} 16. Qf6 {[%emt 0:03:56]} Qe3+ {[%emt 0:00:12]} 17. Rd2 {[%emt 0:00:30]} Rh6 {[%emt 0:06:05]} 18. Qf2 {[%emt 0:00:41]} Qxf2 {[%emt 0:00:12]} 19. Rxf2 {[%emt 0:01:31]} Ng4 {[%emt 0:00:02]} 20. Rd2 {[%emt 0:02:25]} Rxh2 {[%emt 0:00:46]} 21. Be2 {[%emt 0:04:15]} Rxh1+ {[%emt 0:03:47]} 22. Nxh1 {[%emt 0:00:14]} Ne5 {[%emt 0:03:10]} 23. Rd1 {[%emt 0:00:12]} b5 {[%emt 0:00:55]} 24. Nf2 {[%emt 0:01:56]} Bh6+ {[%emt 0:03:37]} 25. Kb1 {[%emt 0:00:03]} Ke7 {[%emt 0:00:16]} 26. Ng4 {[%emt 0:00:54]} Nxg4 {[%emt 0:01:40]} 27. Bxg4 {[%emt 0:00:06]} Bg7 {[%emt 0:00:32]} 28. Bf3 {[%emt 0:01:26]} Bb7 {[%emt 0:01:25]} 29. Ne2 {[%emt 0:03:04]} Rh8 {[%emt 0:00:46]} 30. Ng3 {[%emt 0:03:51]} Be5 {[%emt 0:01:18]} 31. Rh1 {[%emt 0:02:11]} Rxh1+ {[%emt 0:03:20]} 32. Nxh1 {[%emt 0:00:09]} Kf6 {[%emt 0:00:07]} 33. c3 {[%emt 0:01:10]} Kg5 {[%emt 0:00:14]} 34. Kc2 {[%emt 0:01:18]} Kf4 {[%emt 0:00:18]} 35. Kd3 {[%emt 0:00:14]} a5 {[%emt 0:05:01]} 36. a3 {[%emt 0:02:59]} d5 {[%emt 0:02:08]} 37. Nf2 {[%emt 0:04:08]} Kg3 {[%emt 0:00:14]} 38. Nh1+ {[%emt 0:02:50]} Kf4 {[%emt 0:03:43]} 39. Nf2 {[%emt 0:00:42]} Kg3 {[%emt 0:02:41]} 40. Nh1+ {[%emt 0:00:31]} Kh2 {[%emt 0:00:10]} 41. Nf2 Kg1 42. Nh3+ Kf1 43. Ng5 dxe4+ {[%emt 0:04:12]} 44. Bxe4 {[%emt 0:01:33]} 1/2-1/2

[Event "Bhopal GM Open 2019"]
[Site "Bhopal"]
[Date "2019.12.22"]
[Round "3.13"]
[White "Sahoo, Utkal Ranjan"]
[Black "Nehete Arnav"]
[Result "1-0"]
[ECO "E53"]
[WhiteElo "2329"]
[BlackElo "1778"]
[Annotator "NA"]
[PlyCount "47"]
[EventDate "2019.12.21"]
[EventType "swiss"]
[EventCountry "IND"]
[SourceTitle "playchess.com"]
[Source "ChessBase"]
[SourceQuality "1"]
[TimeControl "5400+30"]

1. d4 {[%emt 0:00:00]} Nf6 {[%emt 0:00:00]} 2. c4 {[%emt 0:00:00]} e6 {[%emt 0:00:37]} 3. Nc3 {[%emt 0:00:05]} Bb4 {[%emt 0:00:01]} 4. e3 {[%emt 0:00:11]} O-O {[%emt 0:00:03]} 5. Bd3 {[%emt 0:00:15]} d5 {[%emt 0:00:29]} 6. Nf3 {[%emt 0:01:09]} c5 {[%emt 0:00:07]} 7. a3 {[%emt 0:02:14]} Bxc3+ {[%emt 0:00:10]} 8. bxc3 {[%emt 0:00:02]} dxc4 {[%emt 0:00:30]} 9. Bxc4 {[%emt 0:00:07]} Qc7 {[%emt 0:02:10]} 10. Ba2 {[%emt 0:00:49]} Nbd7 {[%emt 0:00:24]} 11. O-O {[%emt 0:01:41]} b6 {[%emt 0:00:09]} 12. Qe2 {[%emt 0:02:56]} Bb7 {[%emt 0:02:55]} 13. Bb2 {[%emt 0:00:40]} e5 {[%emt 0:04:28]} 14. Rfd1 {[%emt 0:02:47]} exd4 {[%emt 0:05:06]} 15. cxd4 {[%emt 0:00:20]} cxd4 {[%emt 0:01:55]} 16. Rac1 {[%emt 0:01:48]} Qb8 {[%emt 0:13:12]} 17. Nxd4 {[%emt 0:01:04]} Nc5 {[%emt 0:17:57]} 18. Nf5 {[%emt 0:04:19]} Ba6 {[%emt 0:00:48]} 19. Qf3 {[%emt 0:01:13]} Nce4 {[%emt 0:11:20]} 20. Nxg7 {[%emt 0:01:58]} Kxg7 {[%emt 0:18:38]} 21. Qxe4 {[%emt 0:01:22]} Bc8 {[%emt 0:01:57]} 22. Qe7 {[%emt 0:00:38]} Kg6 23. Qxf6+ {[%emt 0:00:00]} Kh5 {[%emt 0:05:21]} 24. Rd5+ 1-0

[Event "Bhopal GM Open 2019"]
[Site "Bhopal"]
[Date "2019.12.22"]
[Round "3.14"]
[White "Phatak Aanjaneya"]
[Black "Pranav Vijay"]
[Result "1-0"]
[ECO "B33"]
[WhiteElo "1776"]
[BlackElo "2265"]
[Annotator "NA"]
[PlyCount "245"]
[EventDate "2019.12.21"]
[EventType "swiss"]
[EventCountry "IND"]
[SourceTitle "playchess.com"]
[Source "ChessBase"]
[SourceQuality "1"]
[TimeControl "5400+30"]

1. e4 {[%emt 0:00:59]} c5 {[%emt 0:00:21]} 2. Nf3 {[%emt 0:00:17]} Nc6 {[%emt 0:00:09]} 3. d4 {[%emt 0:00:06]} cxd4 {[%emt 0:00:06]} 4. Nxd4 {[%emt 0:00:06]} Nf6 {[%emt 0:00:07]} 5. Nc3 {[%emt 0:00:07]} e5 {[%emt 0:00:19]} 6. Ndb5 {[%emt 0:00:13]} d6 {[%emt 0:00:10]} 7. Bg5 {[%emt 0:00:12]} a6 {[%emt 0:00:07]} 8. Na3 {[%emt 0:00:07]} b5 {[%emt 0:00:06]} 9. Bxf6 {[%emt 0:00:12]} gxf6 {[%emt 0:00:09]} 10. Nd5 {[%emt 0:00:07]} f5 {[%emt 0:00:07]} 11. Bd3 {[%emt 0:00:09]} Be6 {[%emt 0:00:57]} 12. c3 {[%emt 0:00:28]} Bxd5 {[%emt 0:03:02]} 13. exd5 {[%emt 0:00:58]} Ne7 {[%emt 0:00:07]} 14. Nxb5 {[%emt 0:06:12]} Bg7 {[%emt 0:00:40]} 15. Na3 {[%emt 0:01:01]} O-O {[%emt 0:00:44]} 16. O-O {[%emt 0:02:07]} e4 {[%emt 0:00:39]} 17. Bc2 {[%emt 0:01:54]} Ng6 {[%emt 0:00:13]} 18. Qh5 {[%emt 0:15:18]} Qf6 {[%emt 0:05:57]} 19. f4 {[%emt 0:02:21]} Rab8 {[%emt 0:02:03]} 20. Nc4 {[%emt 0:01:50]} Rfc8 {[%emt 0:05:38]} 21. Bb3 {[%emt 0:00:30]} Rxc4 {[%emt 0:13:58]} 22. Bxc4 {[%emt 0:00:08]} Rxb2 {[%emt 0:00:06]} 23. Rac1 {[%emt 0:01:25]} Qd8 {[%emt 0:00:08]} 24. Qd1 {[%emt 0:21:42]} Rb8 {[%emt 0:14:05]} 25. Qe2 {[%emt 0:00:30]} a5 {[%emt 0:01:16]} 26. a4 {[%emt 0:02:15]} Qc8 {[%emt 0:01:44]} 27. Kh1 {[%emt 0:01:02]} h5 {[%emt 0:03:51]} 28. Ba6 {[%emt 0:05:31]} Qc5 {[%emt 0:00:24]} 29. Qc4 {[%emt 0:00:26]} Qb6 {[%emt 0:13:26]} 30. Qc6 {[%emt 0:01:31]} Qb2 {[%emt 0:05:40]} 31. Qxd6 {[%emt 0:03:56]} Bf8 {[%emt 0:00:25]} 32. Qc7 {[%emt 0:01:57]} Bh6 {[%emt 0:06:47]} 33. g3 {[%emt 0:02:47]} Rf8 {[%emt 0:01:41]} 34. d6 {[%emt 0:03:20]} Bg7 {[%emt 0:03:43]} 35. d7 {[%emt 0:04:52]} Bf6 {[%emt 0:00:09]} 36. Qd6 {[%emt 0:00:27]} Be7 {[%emt 0:00:28]} 37. Qd5 {[%emt 0:00:34]} Qb6 {[%emt 0:01:24]} 38. Bb5 {[%emt 0:00:37]} Qf6 {[%emt 0:00:43]} 39. Qd4 {[%emt 0:00:59]} Qe6 {[%emt 0:00:06]} 40. c4 {[%emt 0:01:19]} Bd8 {[%emt 0:01:27]} 41. c5 {[%emt 0:00:40]} Bc7 {[%emt 0:00:11]} 42. c6 {[%emt 0:00:35]} Qe7 {[%emt 0:01:12]} 43. Rb1 {[%emt 0:01:42]} h4 {[%emt 0:00:40]} 44. Bc4 {[%emt 0:00:39]} e3 {[%emt 0:05:05]} 45. Rbe1 {[%emt 0:01:02]} Qb4 {[%emt 0:01:48]} 46. Rxe3 {[%emt 0:00:31]} Bb6 {[%emt 0:01:14]} 47. Qc3 {[%emt 0:04:04]} Qd6 {[%emt 0:02:01]} 48. Ref3 {[%emt 0:00:42]} Kh7 {[%emt 0:03:06]} 49. Bb5 {[%emt 0:00:51]} hxg3 {[%emt 0:01:17]} 50. hxg3 {[%emt 0:00:26]} Rg8 {[%emt 0:00:27]} 51. Qd3 {[%emt 0:03:30]} Qf6 {[%emt 0:00:44]} 52. R3f2 {[%emt 0:01:33]} Kg7 {[%emt 0:00:55]} 53. Rh2 {[%emt 0:00:39]} Ne7 54. Rc1 {[%emt 0:00:41]} Bc7 {[%emt 0:01:47]} 55. Qc3 {[%emt 0:00:09]} Nd5 {[%emt 0:00:33]} 56. Qxf6+ {[%emt 0:00:15]} Nxf6 {[%emt 0:00:04]} 57. Rb1 {[%emt 0:01:40]} Kf8 {[%emt 0:02:02]} 58. Rd2 {[%emt 0:01:06]} Ke7 {[%emt 0:00:44]} 59. Re1+ {[%emt 0:00:15]} Kd8 {[%emt 0:00:07]} 60. Bd3 {[%emt 0:02:29]} Rxg3 {[%emt 0:01:21]} 61. Bxf5 {[%emt 0:00:20]} Rg8 {[%emt 0:00:36]} 62. Rb1 {[%emt 0:01:25]} Nh5 {[%emt 0:00:14]} 63. Rdb2 {[%emt 0:02:10]} Ke7 64. Re2+ {[%emt 0:00:11]} Kd8 {[%emt 0:01:46]} 65. Re8+ {[%emt 0:00:07]} Rxe8 {[%emt 0:00:04]} 66. dxe8=Q+ {[%emt 0:00:05]} Kxe8 {[%emt 0:00:04]} 67. Bd7+ {[%emt 0:00:11]} Ke7 {[%emt 0:00:11]} 68. f5 {[%emt 0:00:15]} Nf6 {[%emt 0:00:04]} 69. Kg2 {[%emt 0:00:37]} Nd5 {[%emt 0:00:41]} 70. Kf3 {[%emt 0:02:02]} Nc3 {[%emt 0:00:13]} 71. Ra1 {[%emt 0:00:02]} Nd5 {[%emt 0:00:44]} 72. Ke4 {[%emt 0:00:18]} Nb6 {[%emt 0:00:25]} 73. Kd4 {[%emt 0:00:50]} Kd6 {[%emt 0:00:05]} 74. Be8 {[%emt 0:00:29]} Bd8 {[%emt 0:00:35]} 75. Ra2 {[%emt 0:00:45]} Bf6+ {[%emt 0:00:11]} 76. Ke4 {[%emt 0:00:11]} Ke7 {[%emt 0:00:05]} 77. Bd7 {[%emt 0:00:55]} Bc3 {[%emt 0:00:32]} 78. Kf4 {[%emt 0:02:45]} Bf6 {[%emt 0:02:55]} 79. Re2+ {[%emt 0:00:21]} Kd6 {[%emt 0:00:52]} 80. Be8 {[%emt 0:00:32]} Nxa4 {[%emt 0:00:19]} 81. Bxf7 {[%emt 0:00:51]} Nc5 {[%emt 0:00:05]} 82. Be8 {[%emt 0:00:45]} a4 {[%emt 0:00:06]} 83. Ra2 {[%emt 0:00:34]} Kc7 84. Kg4 {[%emt 0:00:16]} Be5 {[%emt 0:02:11]} 85. Kg5 {[%emt 0:00:20]} Bd6 {[%emt 0:00:27]} 86. Kg6 {[%emt 0:00:11]} Be7 {[%emt 0:00:32]} 87. f6 {[%emt 0:00:12]} Bd6 {[%emt 0:00:10]} 88. Kg7 {[%emt 0:00:40]} Ne6+ {[%emt 0:00:52]} 89. Kg8 {[%emt 0:00:09]} a3 {[%emt 0:00:03]} 90. f7 {[%emt 0:00:57]} Nf8 {[%emt 0:00:15]} 91. Bd7 {[%emt 0:00:14]} Kd8 {[%emt 0:00:41]} 92. Bf5 {[%emt 0:00:53]} Kc7 {[%emt 0:00:09]} 93. Be4 {[%emt 0:00:21]} Bc5 {[%emt 0:00:48]} 94. Re2 {[%emt 0:00:46]} Ne6 95. Bb1 {[%emt 0:00:48]} Nf8 {[%emt 0:01:06]} 96. Rc2 {[%emt 0:00:41]} Bd6 {[%emt 0:00:16]} 97. Ba2 {[%emt 0:00:05]} Bb4 {[%emt 0:00:53]} 98. Bd5 {[%emt 0:00:13]} Bd6 {[%emt 0:00:42]} 99. Re2 {[%emt 0:00:43]} Ng6 {[%emt 0:00:21]} 100. Kg7 {[%emt 0:00:30]} Nf4 {[%emt 0:00:24]} 101. Rd2 {[%emt 0:00:07]} Nh5+ {[%emt 0:00:08]} 102. Kg6 {[%emt 0:00:55]} Nf4+ {[%emt 0:00:04]} 103. Kf5 {[%emt 0:00:27]} Nh5 {[%emt 0:00:23]} 104. Kg6 {[%emt 0:00:33]} Nf4+ {[%emt 0:00:37]} 105. Kf5 {[%emt 0:00:27]} Nh5 {[%emt 0:00:23]} 106. Bf3 {[%emt 0:00:55]} Ng7+ {[%emt 0:00:51]} 107. Kf6 {[%emt 0:00:12]} Bf8 {[%emt 0:00:02]} 108. Ra2 {[%emt 0:00:31]} Kb6 {[%emt 0:00:44]} 109. Rxa3 {[%emt 0:00:11]} Nh5+ {[%emt 0:00:20]} 110. Bxh5 {[%emt 0:00:07]} Bxa3 {[%emt 0:00:03]} 111. Bf3 {[%emt 0:00:08]} Bf8 {[%emt 0:00:11]} 112. Kg6 {[%emt 0:00:04]} Kc7 {[%emt 0:00:30]} 113. Kh7 {[%emt 0:00:01]} Kd6 114. Kg8 {[%emt 0:00:03]} Ke7 {[%emt 0:00:32]} 115. c7 {[%emt 0:00:04]} Kd7 {[%emt 0:00:03]} 116. Kxf8 {[%emt 0:00:06]} Kxc7 {[%emt 0:00:02]} 117. Ke8 {[%emt 0:00:03]} Kb8 {[%emt 0:00:04]} 118. f8=Q {[%emt 0:00:05]} Ka7 {[%emt 0:00:05]} 119. Qb4 {[%emt 0:00:17]} Ka6 {[%emt 0:00:04]} 120. Be2+ {[%emt 0:00:06]} Ka7 {[%emt 0:00:03]} 121. Kd7 {[%emt 0:00:12]} Ka8 {[%emt 0:00:04]} 122. Kc7 {[%emt 0:00:07]} Ka7 {[%emt 0:00:02]} 123. Qa5# {[%emt 0:00:02]} 1-0

[Event "Bhopal GM Open 2019"]
[Site "Bhopal"]
[Date "2019.12.22"]
[Round "3.15"]
[White "Tiwari Shivansh"]
[Black "Sapaev, Maksad"]
[Result "1-0"]
[ECO "A45"]
[WhiteElo "1770"]
[BlackElo "2250"]
[Annotator "NA"]
[PlyCount "91"]
[EventDate "2019.12.21"]
[EventType "swiss"]
[EventCountry "IND"]
[SourceTitle "playchess.com"]
[Source "ChessBase"]
[SourceQuality "1"]
[TimeControl "5400+30"]

1. d4 {[%emt 0:00:00]} Nf6 {[%emt 0:04:42]} 2. Bf4 {[%emt 0:00:00]} c5 {[%emt 0:00:22]} 3. e3 {[%emt 0:00:01]} d5 {[%emt 0:00:34]} 4. c3 {[%emt 0:00:25]} Nc6 {[%emt 0:00:04]} 5. Nd2 {[%emt 0:00:46]} e6 {[%emt 0:00:19]} 6. Ngf3 {[%emt 0:00:12]} Bd6 {[%emt 0:00:06]} 7. Bg3 {[%emt 0:00:18]} O-O {[%emt 0:00:42]} 8. Bd3 {[%emt 0:00:05]} Qe7 {[%emt 0:02:09]} 9. Ne5 {[%emt 0:00:32]} Nd7 {[%emt 0:02:49]} 10. Nxd7 {[%emt 0:01:16]} Bxd7 {[%emt 0:00:14]} 11. Bxd6 {[%emt 0:01:05]} Qxd6 {[%emt 0:00:03]} 12. dxc5 {[%emt 0:00:53]} Qxc5 {[%emt 0:00:08]} 13. Bxh7+ {[%emt 0:01:34]} Kxh7 {[%emt 0:00:50]} 14. Qh5+ {[%emt 0:00:07]} Kg8 {[%emt 0:00:22]} 15. Ne4 {[%emt 0:00:04]} Qc4 {[%emt 0:00:22]} 16. Ng5 {[%emt 0:00:52]} Qd3 {[%emt 0:13:21]} 17. e4 {[%emt 0:00:56]} Qxe4+ {[%emt 0:00:16]} 18. Nxe4 {[%emt 0:00:11]} dxe4 {[%emt 0:00:03]} 19. O-O-O {[%emt 0:00:31]} Rfd8 {[%emt 0:00:16]} 20. Rhe1 {[%emt 0:00:51]} f5 {[%emt 0:00:51]} 21. Re3 {[%emt 0:10:10]} Be8 {[%emt 0:06:39]} 22. Rxd8 {[%emt 0:00:19]} Rxd8 {[%emt 0:00:01]} 23. Qh4 {[%emt 0:00:17]} Rd7 {[%emt 0:00:48]} 24. Rh3 {[%emt 0:03:19]} Bg6 {[%emt 0:01:02]} 25. Qh8+ {[%emt 0:01:31]} Kf7 {[%emt 0:00:02]} 26. Qc8 {[%emt 0:01:33]} Ne5 {[%emt 0:00:15]} 27. Rh8 {[%emt 0:01:38]} Kf6 {[%emt 0:00:21]} 28. Rd8 {[%emt 0:19:42]} Re7 {[%emt 0:02:30]} 29. Kd2 {[%emt 0:17:33]} f4 {[%emt 0:01:03]} 30. b4 {[%emt 0:07:01]} Ng4 {[%emt 0:11:27]} 31. Rf8+ {[%emt 0:06:03]} Bf7 {[%emt 0:00:17]} 32. Ke2 {[%emt 0:00:37]} e3 {[%emt 0:06:33]} 33. fxe3 {[%emt 0:04:56]} Nxe3 {[%emt 0:00:06]} 34. Qb8 {[%emt 0:09:40]} e5 {[%emt 0:10:10]} 35. g3 {[%emt 0:01:12]} g5 {[%emt 0:04:47]} 36. Qxa7 {[%emt 0:04:59]} Kg7 {[%emt 0:01:34]} 37. Rd8 {[%emt 0:03:41]} g4 {[%emt 0:21:06]} 38. Qc5 {[%emt 0:00:44]} Nf5 {[%emt 0:00:17]} 39. Kf2 {[%emt 0:00:47]} f3 {[%emt 0:00:40]} 40. h3 {[%emt 0:02:24]} b6 {[%emt 0:01:46]} 41. Qxb6 {[%emt 0:01:09]} e4 {[%emt 0:04:53]} 42. hxg4 {[%emt 0:00:17]} Nh6 {[%emt 0:00:08]} 43. Qd4+ {[%emt 0:00:28]} Kh7 {[%emt 0:00:02]} 44. Rh8+ {[%emt 0:00:14]} Kg6 {[%emt 0:00:03]} 45. Rxh6+ {[%emt 0:00:04]} Kxh6 {[%emt 0:01:49]} 46. Qf6+ {[%emt 0:00:04]} 1-0